bitfinex-derivatives/quotes_BNBF0:USTF0_20250326
["timestamp","ask_amount","ask_price","bid_price","bid_amount"]
[1743017434208,1.04183659,617.28,617.0,1.21150284]
[1743017435116,1.04183659,617.27,617.0,1.21150284]
[1743017435518,1.04183659,617.27,616.96,1.21150284]
[1743017435720,1.04183659,617.26,616.96,1.21150284]
[1743017436220,1.04183659,617.25,616.96,1.21150284]
[1743017436718,2.06310124,617.42,616.96,1.21150284]
[1743017436918,3.35260108,617.41,616.96,1.21150284]
[1743017437120,1.28949984,617.4,616.96,1.21150284]
[1743017437316,3.35272017,617.39,616.96,1.21150284]
[1743017437516,1.28949984,617.38,616.96,1.21150284]
[1743017437717,1.28949984,617.37,616.96,1.21150284]
[1743017437917,3.999374,617.36,616.96,1.21150284]
[1743017438117,3.999374,617.36,616.69,0.28193433]
[1743017438118,1.28949984,617.35,616.97,1.21150284]
[1743017438317,1.28949984,617.34,616.97,1.21150284]
[1743017438520,1.28949984,617.33,616.97,1.21150284]
[1743017438819,1.28949984,617.32,616.97,1.21150284]
[1743017439018,1.28949984,617.31,616.97,1.21150284]
[1743017439221,1.28949984,617.3,616.97,1.21150284]
[1743017439519,1.28949984,617.29,616.97,1.21150284]
[1743017439720,1.28949984,617.28,616.97,1.21150284]
[1743017439917,2.70987416,617.31,616.9,1.21150284]
[1743017440117,2.70987416,617.28,616.9,1.21150284]
[1743017440713,2.06362324,617.48,616.9,1.21150284]
[1743017440714,1.04225929,617.27,616.9,1.21150284]
[1743017441819,1.04225929,617.26,616.9,1.21150284]
[1743017442417,1.04225929,617.25,616.9,1.21150284]
[1743017442614,1.04225929,617.25,616.92,1.21150284]
[1743017443014,1.04225929,617.24,616.92,1.21150284]
[1743017443821,1.04225929,617.23,616.92,1.21150284]
[1743017444221,1.04225929,617.22,616.92,1.21150284]
[1743017445018,1.04225929,617.21,616.92,1.21150284]
[1743017445623,2.06366468,617.42,616.92,1.21150284]
[1743017445827,3.35354513,617.41,616.92,1.21150284]
[1743017446027,6.02264595,617.4,616.92,1.21150284]
[1743017446219,1.28988045,617.39,616.92,1.21150284]
[1743017446423,1.28988045,617.38,616.92,1.21150284]
[1743017446623,1.28988045,617.37,616.92,1.21150284]
[1743017446823,1.28988045,617.36,616.92,1.21150284]
[1743017447027,1.28988045,617.35,616.92,1.21150284]
[1743017447226,2.31643666,617.34,616.92,1.21150284]
[1743017447420,1.28988045,617.33,616.92,1.21150284]
[1743017447618,1.28988045,617.32,616.92,1.21150284]
[1743017447823,1.02655621,617.32,616.92,1.21150284]
[1743017448024,1.02655621,617.32,616.93,1.21150284]
[1743017448224,1.02655621,617.31,616.93,1.21150284]
[1743017448924,1.02655621,617.3,616.93,1.21150284]
[1743017449327,1.02655621,617.29,616.93,1.21150284]
[1743017450027,1.02655621,617.28,616.93,1.21150284]
[1743017450728,1.02655621,617.27,616.93,1.21150284]
[1743017451029,1.02655621,617.26,616.72,1.21150284]
[1743017451626,1.02655621,617.25,616.72,1.21150284]
[1743017452530,1.02655621,617.24,616.72,1.21150284]
[1743017453129,1.02655621,617.23,616.72,1.21150284]
[1743017453627,1.02655621,617.23,616.71,0.28196403]
[1743017453828,1.02655621,617.22,616.71,0.28196403]
[1743017454132,1.02655621,617.22,616.7,1.21150284]
[1743017454327,1.02655621,617.21,616.7,1.21150284]
[1743017454928,1.097,617.32,616.7,1.21150284]
[1743017454929,1.02655621,617.2,616.7,1.21150284]
[1743017455537,1.02655621,617.2,616.71,0.28197202]
[1743017455732,1.02655621,617.19,616.74,1.21150284]
[1743017456635,1.097,617.32,616.74,1.21150284]
[1743017456636,1.02655621,617.18,616.74,1.21150284]
[1743017457131,1.097,617.32,616.75,1.21150284]
[1743017457733,1.29017306,617.31,616.75,1.21150284]
[1743017457929,1.29017306,617.3,616.75,1.21150284]
[1743017458133,1.29017306,617.29,616.75,1.21150284]
[1743017458336,1.29017306,617.28,616.75,1.21150284]
[1743017458533,2.62825712,617.31,616.75,1.21150284]
[1743017458534,1.29017306,617.27,616.75,1.21150284]
[1743017458732,2.30104118,617.26,616.75,1.21150284]
[1743017458932,1.29008649,617.25,616.75,1.21150284]
[1743017459131,1.29008649,617.24,616.75,1.21150284]
[1743017459329,1.01086812,617.24,616.75,1.21150284]
[1743017459932,1.01086812,617.23,616.75,1.21150284]
[1743017460136,1.01086812,617.23,616.24,1.20966841]
[1743017460137,1.01086812,617.23,616.93,1.21150284]
[1743017460637,2.3008369,617.22,616.93,1.21150284]
[1743017460837,1.28996878,617.21,616.93,1.21150284]
[1743017461037,2.065,617.32,616.93,1.21150284]
[1743017461038,2.3007616,617.2,616.93,1.21150284]
[1743017461237,1.28989348,617.19,616.93,1.21150284]
[1743017461438,1.28989348,617.18,616.93,1.21150284]
[1743017461633,1.01086812,617.18,616.93,1.21150284]
[1743017462332,1.01086812,617.17,616.93,1.21150284]
[1743017462937,1.01086812,617.17,616.78,1.21150284]
[1743017463138,1.01086812,617.16,616.78,1.21150284]
[1743017463840,1.01086812,617.15,616.78,1.21150284]
[1743017464436,1.01086812,617.14,616.78,1.21150284]
[1743017464933,2.06260012,617.27,616.78,1.21150284]
[1743017465137,3.35158189,617.26,616.78,1.21150284]
[1743017465339,3.35158189,617.25,616.78,1.21150284]
[1743017465539,3.35158189,617.24,616.74,1.21150284]
[1743017465840,2.62524286,617.25,616.74,1.21150284]
[1743017465841,3.35107248,617.23,616.74,1.21150284]
[1743017466041,3.35105382,617.22,616.74,1.21150284]
[1743017466242,2.62524286,617.23,616.74,1.21150284]
[1743017466243,1.28913659,617.21,616.74,1.21150284]
[1743017466434,1.28913659,617.2,616.74,1.21150284]
[1743017466636,2.62524286,617.21,616.74,1.21150284]
[1743017466837,1.28851991,617.2,616.74,1.21150284]
[1743017467035,1.00970879,617.2,616.74,1.21150284]
[1743017467234,1.00970879,617.19,616.74,1.21150284]
[1743017467642,1.61512991,617.29,616.74,1.21150284]
[1743017467846,1.28842596,617.28,616.74,1.21150284]
[1743017468041,1.28842596,617.27,616.74,1.21150284]
[1743017468240,1.28842596,617.26,616.83,1.21150284]
[1743017468441,1.28842596,617.25,616.83,1.21150284]
[1743017468641,1.00946335,617.24,616.83,1.21150284]
[1743017469442,1.00946335,617.23,616.83,1.21150284]
[1743017469838,1.61493237,617.31,616.83,1.21150284]
[1743017470043,1.28820123,617.3,616.83,1.21150284]
[1743017470239,1.28820123,617.29,616.83,1.21150284]
[1743017470445,1.28820123,617.28,616.83,1.21150284]
[1743017470641,1.28820123,617.27,616.88,1.21150284]
[1743017470848,2.297488,617.26,616.88,1.21150284]
[1743017471044,1.00928677,617.26,616.88,1.21150284]
[1743017471443,1.00928677,617.25,616.88,1.21150284]
[1743017471744,1.00928677,617.24,616.88,1.21150284]
[1743017472147,1.00928677,617.23,616.88,1.21150284]
[1743017472540,1.00928677,617.22,616.89,1.21150284]
[1743017473040,2.065,617.32,616.89,1.21150284]
[1743017473345,2.90333648,617.31,616.89,1.21150284]
[1743017473547,1.28826218,617.3,616.89,1.21150284]
[1743017473741,1.28826218,617.29,616.89,1.21150284]
[1743017473945,2.29759704,617.28,616.89,1.21150284]
[1743017474147,1.28826218,617.27,616.89,1.21150284]
[1743017474346,1.28826218,617.26,616.89,1.21150284]
[1743017474541,1.00933486,617.27,616.89,1.21150284]
[1743017474744,3.91232125,617.26,616.89,1.21150284]
[1743017474943,2.62415189,617.26,616.82,1.21150284]
[1743017475143,3.91229758,617.25,616.82,1.21150284]
[1743017475341,1.28814569,617.24,616.82,1.21150284]
[1743017475641,0.968,617.32,616.82,1.21150284]
[1743017475642,2.29748055,617.23,616.82,1.21150284]
[1743017475846,1.28814569,617.22,616.82,1.21150284]
[1743017476041,1.28814569,617.21,616.82,1.21150284]
[1743017476341,1.00933486,617.22,616.82,1.21150284]
[1743017476545,2.29736826,617.21,616.82,1.21150284]
[1743017476750,1.00933486,617.21,616.82,1.21150284]
[1743017477151,1.00933486,617.2,616.82,1.21150284]
[1743017477751,1.00933486,617.19,616.82,1.21150284]
[1743017478358,1.987,617.29,616.82,1.21150284]
[1743017478559,1.28809705,617.28,616.82,1.21150284]
[1743017478860,1.987,617.29,616.82,1.21150284]
[1743017479262,1.0092441,617.28,616.82,1.21150284]
[1743017479462,1.0092441,617.27,616.82,1.21150284]
[1743017480160,3.523,617.29,616.82,1.21150284]
[1743017480657,1.00938879,617.28,616.82,1.21150284]
[1743017481255,3.523,617.29,616.82,1.21150284]
[1743017483062,0.781,617.28,616.82,1.21150284]
[1743017486660,1.312,617.27,616.82,1.21150284]
[1743017491574,1.312,617.27,616.83,0.32423844]
[1743017495071,1.312,617.27,616.83,1.53574128]
[1743017495670,1.209,617.26,616.83,1.53574128]
[1743017497670,0.937,617.25,617.06,1.21150284]
[1743017497871,0.937,617.25,617.07,0.32411233]
[1743017512884,0.937,617.25,617.09,1.21150284]
[1743017513084,0.937,617.25,617.1,0.32409658]
[1743017515788,1.209,617.26,617.1,0.32409658]
[1743017521284,1.209,617.26,617.16,1.21150284]
[1743017521488,1.209,617.26,617.17,0.32405982]
[1743017522793,1.134,617.35,617.17,0.32405982]
[1743017523386,1.134,617.35,617.25,1.21150284]
[1743017523585,1.134,617.35,617.26,0.32401257]
[1743017528395,1.134,617.35,617.32,1.21001419]
[1743017528588,1.134,617.35,617.33,0.32397583]
[1743017537506,1.134,617.35,617.34,0.94176378]
[1743017537902,1.134,617.35,617.34,1.26573436]
[1743017541309,1.352,617.5,617.34,1.26573436]
[1743017545613,1.352,617.5,617.45,1.20758813]
[1743017547217,1.352,617.5,617.42,1.20758813]
[1743017549422,1.352,617.5,617.46,1.20841726]
[1743017551722,1.352,617.5,617.41,1.20758813]
[1743017554220,1.352,617.5,617.48,1.21031848]
[1743017557020,1.352,617.5,617.42,0.2816662]
[1743017557624,2.684,617.58,617.42,0.2816662]
[1743017559025,2.684,617.58,617.52,1.21175197]
[1743017561429,2.684,617.58,617.46,0.28163885]
[1743017561633,2.684,617.58,617.47,0.32390237]
[1743017563729,2.684,617.58,617.48,0.94176378]
[1743017565534,0.13142527,617.58,617.48,0.94176378]
[1743017565837,2.596,617.76,617.48,0.94176378]
[1743017568329,2.596,617.76,617.47,0.32390237]
[1743017569831,2.596,617.76,617.47,0.60552298]
[1743017570434,2.596,617.76,617.74,1.20924688]
[1743017571839,1.72,617.76,617.74,1.20924688]
[1743017572336,1.72,617.76,617.64,1.2095858]
[1743017572540,1.72,617.76,617.65,0.32380798]
[1743017582041,1.72,617.76,617.67,1.2095858]
[1743017582247,1.72,617.76,617.68,0.32379225]
[1743017586149,0.5838582,617.76,617.68,0.32379225]
[1743017586354,0.885,617.89,617.68,0.32379225]
[1743017588656,0.885,617.89,617.81,1.2095858]
[1743017591063,0.885,617.89,617.79,1.2095858]
[1743017592868,0.885,617.89,617.78,1.2095858]
[1743017595467,0.885,617.89,617.76,1.2095858]
[1743017596567,1.48,618.39,617.76,1.2095858]
[1743017598171,1.48,618.39,618.01,1.20667196]
[1743017599666,0.843,618.38,618.01,1.20667196]
[1743017600271,0.843,618.38,618.03,1.20667196]
[1743017602875,0.843,618.38,617.73,0.28144638]
[1743017602876,0.843,618.38,618.06,1.20667196]
[1743017604984,0.843,618.38,618.13,1.20667196]
[1743017607279,0.843,618.38,617.97,1.20667196]
[1743017609887,0.843,618.38,617.92,1.20667196]
[1743017610179,1.30254313,618.37,617.92,1.20667196]
[1743017610483,1.30254313,618.36,617.92,1.20667196]
[1743017610682,1.30254313,618.35,617.92,1.20667196]
[1743017610876,1.30254313,618.34,617.92,1.20667196]
[1743017611077,1.30254313,618.33,617.92,1.20667196]
[1743017611277,1.30254313,618.32,617.92,1.20667196]
[1743017611477,1.30254313,618.31,617.92,1.20667196]
[1743017611784,1.30254313,618.3,617.92,1.20667196]
[1743017612082,1.30254313,618.29,617.92,1.20667196]
[1743017612284,1.30254313,618.28,617.79,1.20667196]
[1743017612582,2.73319262,618.29,617.79,1.20667196]
[1743017612583,1.30254313,618.27,617.79,1.20667196]
[1743017612783,1.30254313,618.26,617.79,1.20667196]
[1743017612976,1.30254313,618.25,617.79,1.20667196]
[1743017613177,1.30254313,618.24,617.79,1.20667196]
[1743017613485,1.30254313,618.23,617.79,1.20667196]
[1743017613679,1.05122793,618.24,617.79,1.20667196]
[1743017613883,0.96059935,618.2,617.79,1.20667196]
[1743017614084,4.94718714,618.19,617.79,1.20667196]
[1743017614380,5.43168915,618.18,617.79,1.20667196]
[1743017614586,1.60285407,618.03,617.79,1.20667196]
[1743017614785,1.60285407,618.03,617.48,1.20667196]
[1743017614786,3.38743532,618.02,617.48,1.20667196]
[1743017614985,3.38743532,618.01,617.48,1.20667196]
[1743017615187,3.38743532,618.0,617.48,1.20667196]
[1743017615384,3.38743532,617.99,617.48,1.20667196]
[1743017615583,3.38743532,617.98,617.48,1.20667196]
[1743017615785,3.37307897,617.97,617.48,1.20667196]
[1743017615988,3.37307897,617.96,617.48,1.20667196]
[1743017616185,3.37307897,617.95,617.48,1.20667196]
[1743017616487,3.37307897,617.94,617.48,1.20667196]
[1743017616681,4.02013934,617.93,617.48,1.20667196]
[1743017616884,3.37307897,617.92,617.48,1.20667196]
[1743017617082,1.29733806,617.91,617.48,1.20667196]
[1743017617281,1.29480468,617.9,616.94,0.28168558]
[1743017617486,1.29480468,617.89,616.94,0.28168558]
[1743017617684,1.29480468,617.88,616.94,0.28168558]
[1743017617882,1.29480468,617.87,616.94,0.28168558]
[1743017618085,1.29480468,617.86,616.94,0.28168558]
[1743017618286,1.29480468,617.85,616.94,0.28168558]
[1743017618589,1.025,617.89,616.94,0.28168558]
[1743017618590,1.29480468,617.84,616.94,0.60586621]
[1743017618783,1.29480468,617.83,616.94,0.60586621]
[1743017618986,1.29480468,617.82,616.94,0.60586621]
[1743017619184,1.29402192,617.81,616.94,0.60586621]
[1743017619386,1.29402192,617.8,616.94,0.60586621]
[1743017619586,1.29402192,617.79,616.94,0.60586621]
[1743017619785,1.29402192,617.78,616.94,0.60586621]
[1743017619990,1.29321394,617.77,616.94,0.60586621]
[1743017620186,1.67557002,617.78,616.94,0.60586621]
[1743017620491,1.29254063,617.77,616.94,0.60586621]
[1743017620686,1.29254063,617.76,616.94,0.60586621]
[1743017620885,1.29254063,617.75,616.94,0.60586621]
[1743017621096,1.29254063,617.74,616.94,0.60586621]
[1743017621285,1.29254063,617.73,616.94,0.60586621]
[1743017621485,1.29254063,617.72,616.94,0.60586621]
[1743017621689,1.29254063,617.71,616.94,0.60586621]
[1743017621885,1.29254063,617.7,616.94,0.60586621]
[1743017622189,4.01534191,617.69,616.94,0.60586621]
[1743017622386,1.29254063,617.68,616.94,0.60586621]
[1743017622590,1.29254063,617.67,616.94,0.60586621]
[1743017622890,1.29038085,617.66,616.94,0.60586621]
[1743017623090,2.72280128,617.67,616.94,0.60586621]
[1743017623288,4.01246042,617.66,616.94,0.60586621]
[1743017623488,2.72280128,617.66,616.94,0.60586621]
[1743017623787,1.2894699,617.65,616.94,0.60586621]
[1743017623992,1.2894699,617.64,616.94,0.60586621]
[1743017624188,1.2894699,617.63,616.94,0.60586621]
[1743017624393,1.2894699,617.62,616.94,0.60586621]
[1743017624589,1.2894699,617.61,616.94,0.60586621]
[1743017624793,2.72280128,617.65,616.94,0.60586621]
[1743017624989,1.67557002,617.6,616.94,0.60586621]
[1743017625185,2.72280128,617.6,616.94,0.60586621]
[1743017625387,2.72280128,617.59,616.94,0.32418063]
[1743017625585,2.72280128,617.58,616.94,0.32418063]
[1743017626592,2.72280128,617.57,616.94,0.32418063]
[1743017627498,1.04723126,617.56,616.94,0.32418063]
[1743017628295,1.04723126,617.55,616.94,0.32418063]
[1743017628897,2.23123126,617.54,616.94,0.32418063]
[1743017629894,1.184,617.54,616.94,0.32418063]
[1743017630600,1.03731863,617.53,616.94,0.32418063]
[1743017631503,1.03731863,617.52,616.94,0.32418063]
[1743017631898,1.276,617.51,616.94,0.32418063]
[1743017632098,2.31331863,617.51,616.94,0.32418063]
[1743017632905,1.276,617.51,616.94,0.32418063]
[1743017634103,1.03633082,617.5,616.94,0.32418063]
[1743017634703,1.276,617.51,616.94,0.32418063]
[1743017636007,1.03597681,617.5,616.94,0.32418063]
[1743017636906,1.276,617.51,616.94,0.32418063]
[1743017637307,0.963,617.5,616.94,0.32418063]
[1743017648311,1.03701409,617.49,616.94,0.32418063]
[1743017648709,0.963,617.5,616.94,0.32418063]
[1743017649618,1.03697965,617.49,616.94,0.32418063]
[1743017650117,0.963,617.5,616.94,0.32418063]
[1743017650520,0.963,617.5,617.17,1.20667196]
[1743017651223,2.506,617.49,617.17,1.20667196]
[1743017653613,2.506,617.49,617.18,1.20667196]
[1743017655921,2.506,617.49,617.21,1.20667196]
[1743017657723,0.891,617.48,617.2,1.20667196]
[1743017660026,0.891,617.48,617.16,1.20667196]
[1743017664823,0.891,617.48,617.15,1.20667196]
[1743017667126,0.925,617.47,617.15,1.20667196]
[1743017667929,0.925,617.47,616.94,0.32418063]
[1743017667930,0.925,617.47,617.17,1.20667196]
[1743017669727,1.288,617.46,617.17,1.20667196]
[1743017669928,1.288,617.46,617.19,1.20667196]
[1743017671829,1.288,617.46,617.26,1.20667196]
[1743017674826,1.288,617.46,617.28,1.20667196]
[1743017677134,1.288,617.46,617.22,1.20667196]
[1743017678030,2.946,617.46,617.22,1.20667196]
[1743017679135,2.946,617.46,617.19,1.20667196]
[1743017681038,2.946,617.46,617.2,1.20667196]
[1743017682935,2.946,617.46,617.3,1.20667196]
[1743017683140,1.292,617.45,617.3,1.20667196]
[1743017686643,1.292,617.45,617.32,1.20667196]
[1743017688548,1.292,617.45,617.43,1.20667196]
[1743017690348,1.292,617.45,617.3,1.2095858]
[1743017696155,1.292,617.45,617.44,1.20788295]
[1743017698055,1.292,617.45,617.27,1.2095858]
[1743017698056,1.292,617.45,617.28,1.2095858]
[1743017700449,1.292,617.45,617.35,1.2095858]
[1743017703750,1.292,617.45,617.14,1.45412004]
[1743017703751,1.292,617.45,617.41,1.2095858]
[1743017706561,1.292,617.45,617.43,1.2095858]
[1743017709061,1.292,617.45,617.42,1.2095858]
[1743017711466,1.292,617.45,617.41,1.2095858]
[1743017713759,1.292,617.45,617.44,1.21113154]
[1743017718666,1.292,617.45,617.35,1.2095858]
[1743017718667,1.292,617.45,617.43,1.2095858]
[1743017721069,1.292,617.45,617.4,1.2095858]
[1743017722470,1.292,617.45,617.41,1.2095858]
[1743017727774,1.292,617.45,617.36,1.45412004]
[1743017730678,1.292,617.45,617.42,1.21153672]
[1743017732874,1.292,617.45,617.3,0.28172663]
[1743017732875,0.12223838,617.45,617.31,0.94083101]
[1743017733081,2.296,617.65,617.31,0.94083101]
[1743017734982,2.296,617.65,617.53,1.21198603]
[1743017736885,2.296,617.65,617.63,1.21215265]
[1743017738787,2.296,617.65,617.53,1.21215265]
[1743017741889,2.296,617.65,617.5,1.21215265]
[1743017742484,1.367,617.65,617.5,1.21215265]
[1743017744593,1.367,617.65,617.4,1.21215265]
[1743017745598,1.083,617.64,617.4,1.21215265]
[1743017747002,1.083,617.64,617.35,1.21215265]
[1743017749397,1.083,617.64,617.25,1.21215265]
[1743017751608,1.083,617.64,617.27,1.21215265]
[1743017753304,0.859,617.63,617.27,1.21215265]
[1743017753805,0.859,617.63,617.29,1.21215265]
[1743017756408,0.859,617.63,617.21,0.28172321]
[1743017756409,0.859,617.63,617.3,1.21215265]
[1743017759018,0.859,617.63,617.32,1.21215265]
[1743017760522,1.353,617.62,617.32,1.21215265]
[1743017764112,1.353,617.62,617.47,1.21215265]
[1743017765611,1.353,617.62,617.45,1.21215265]
[1743017771114,1.353,617.62,617.47,1.21215265]
[1743017771523,0.859,617.63,617.47,1.21215265]
[1743017775017,0.859,617.63,617.44,1.21215265]
[1743017775212,2.346,617.71,617.44,1.21215265]
[1743017777724,1.497,617.7,617.44,1.21215265]
[1743017777921,1.497,617.7,617.46,1.21215265]
[1743017779529,1.497,617.7,617.34,0.28168672]
[1743017779530,1.497,617.7,617.51,1.21215265]
[1743017781125,1.497,617.7,617.57,1.21215265]
[1743017783525,1.497,617.7,617.6,1.21215265]
[1743017785627,1.497,617.7,617.34,0.28167418]
[1743017785827,1.497,617.7,617.31,1.21215265]
[1743017788130,1.497,617.7,617.26,1.21215265]
[1743017789933,1.497,617.7,617.33,1.21215265]
[1743017793334,1.497,617.7,617.19,1.21215265]
[1743017795437,1.497,617.7,617.17,1.21215265]
[1743017798837,1.497,617.7,617.09,0.28177681]
[1743017798838,1.497,617.7,617.21,1.21215265]
[1743017801335,1.497,617.7,617.09,0.28177681]
[1743017802239,1.497,617.7,617.1,0.32409658]
[1743017803540,2.379,617.7,617.1,0.32409658]
[1743017804944,2.379,617.7,617.13,1.21215265]
[1743017805443,2.379,617.7,617.14,0.32407557]
[1743017806542,3.389,617.7,617.14,0.32407557]
[1743017807149,3.389,617.7,617.27,1.21215265]
[1743017809155,3.389,617.7,617.3,1.21215265]
[1743017811054,3.389,617.7,617.32,1.21215265]
[1743017812054,4.325,617.7,617.32,1.21215265]
[1743017814053,4.325,617.7,617.4,1.21215265]
[1743017815956,4.325,617.7,617.57,1.21215265]
[1743017816260,2.828,617.7,617.57,1.21215265]
[1743017818754,2.828,617.7,617.58,1.21215265]
[1743017820564,2.828,617.7,617.5,1.21215265]
[1743017821557,1.818,617.7,617.5,1.21215265]
[1743017822864,1.818,617.7,617.42,1.21215265]
[1743017823965,2.687,617.7,617.42,1.21215265]
[1743017829663,2.687,617.7,617.6,1.21215265]
[1743017832668,2.687,617.7,617.67,1.21215265]
[1743017833264,1.805,617.7,617.67,1.21215265]
[1743017835167,1.805,617.7,617.47,1.21198603]
[1743017836969,1.805,617.7,613.7,4.01690823]
[1743017836970,1.805,617.7,617.53,1.21198603]
[1743017839070,1.805,617.7,617.13,2.47402368]
[1743017839071,1.805,617.7,617.5,1.21198603]
[1743017842075,1.805,617.7,617.54,1.21198603]
[1743017845176,0.936,617.7,617.54,1.21198603]
[1743017845877,0.936,617.7,617.49,0.28162745]
[1743017845878,0.936,617.7,617.67,1.20735656]
[1743017848176,0.936,617.7,617.62,1.20735656]
[1743017850177,0.936,617.7,617.59,1.20735656]
[1743017852172,0.936,617.7,617.34,1.21198603]
[1743017852173,0.936,617.7,617.64,1.20735656]
[1743017854074,0.936,617.7,617.53,1.21198603]
[1743017856880,0.936,617.7,617.69,1.20777391]
[1743017857872,1.238,617.71,617.69,1.20777391]
[1743017858473,1.238,617.71,617.51,1.21198603]
[1743017860881,1.238,617.71,617.55,1.21198603]
[1743017863482,1.238,617.71,617.54,1.21198603]
[1743017866382,1.646,617.78,617.52,1.21198603]
[1743017869486,1.074,617.77,617.52,1.21198603]
[1743017870083,1.074,617.77,617.63,1.20839123]
[1743017873289,1.074,617.77,617.62,1.20839123]
[1743017875190,1.074,617.77,617.14,0.32407557]
[1743017875191,1.074,617.77,617.67,1.20839123]
[1743017876592,1.074,617.77,617.6,1.20839123]
[1743017878684,1.074,617.77,617.61,1.20839123]
[1743017880592,1.074,617.77,617.39,1.21198603]
[1743017880593,1.074,617.77,617.62,1.20839123]
[1743017883293,1.074,617.77,617.73,1.20839123]
[1743017886301,1.074,617.77,617.57,1.21198603]
[1743017889000,1.074,617.77,617.72,1.21043077]
[1743017891302,1.074,617.77,617.47,0.28162973]
[1743017891303,1.074,617.77,617.64,1.21043077]
[1743017893605,1.158,617.86,617.64,1.21043077]
[1743017896013,1.158,617.86,617.66,1.21043077]
[1743017897809,1.158,617.86,617.73,1.21043077]
[1743017898212,2.364,617.88,617.73,1.21043077]
[1743017900717,2.364,617.88,617.39,1.49361006]
[1743017900718,2.364,617.88,617.79,1.21043077]
[1743017902211,2.364,617.88,617.76,1.21043077]
[1743017904815,2.364,617.88,617.77,1.21043077]
[1743017907422,2.364,617.88,617.73,1.21043077]
[1743017907617,1.016,617.88,617.73,1.21043077]
[1743017909724,1.016,617.88,617.52,1.21198603]
[1743017909725,1.016,617.88,617.67,1.21043077]
[1743017911924,1.016,617.88,617.65,1.21043077]
[1743017913926,1.016,617.88,610.31,9.70639512]
[1743017913927,1.016,617.88,617.58,1.21043077]
[1743017917325,1.016,617.88,617.51,1.21043077]
[1743017917925,1.421,617.87,617.51,1.21043077]
[1743017919430,1.421,617.87,616.99,1.45412004]
[1743017919431,1.421,617.87,617.5,1.21043077]
[1743017922136,1.421,617.87,617.31,0.28166962]
[1743017922137,1.421,617.87,617.47,1.21043077]
[1743017923934,1.421,617.87,617.51,1.21043077]
[1743017925532,1.421,617.87,617.54,1.21043077]
[1743017925933,1.421,617.86,617.54,1.21043077]
[1743017928640,1.421,617.86,617.37,0.28163201]
[1743017928641,1.421,617.86,617.59,1.21043077]
[1743017931342,1.421,617.86,617.61,1.21043077]
[1743017933644,1.421,617.86,617.64,1.21043077]
[1743017938442,1.421,617.86,617.75,1.21043077]
[1743017942347,1.421,617.86,617.81,1.21043077]
[1743017944147,1.421,617.86,617.77,1.21043077]
[1743017946344,1.421,617.86,617.78,1.21043077]
[1743017948948,1.421,617.86,617.48,0.28158985]
[1743017948949,1.421,617.86,617.68,1.21043077]
[1743017951750,1.421,617.86,617.72,1.21043077]
[1743017954256,1.421,617.86,617.77,1.21043077]
[1743017954957,2.218,617.88,617.77,1.21043077]
[1743017956961,1.334,617.88,617.77,1.21043077]
[1743017958264,1.334,617.88,617.83,1.21043077]
[1743017960664,1.334,617.88,617.87,1.21043077]
[1743017963665,1.119,618.01,617.8,1.21198603]
[1743017965669,1.119,618.01,617.91,1.21013377]
[1743017967966,1.119,618.01,617.79,1.21013377]
[1743017975679,1.119,618.01,617.93,1.21013377]
[1743017978475,1.119,618.01,617.95,1.21013377]
[1743017979783,0.9,618.07,617.95,1.21013377]
[1743017980581,0.9,618.07,617.97,1.21013377]
[1743017982182,0.9,618.07,617.86,1.21013377]
[1743017983786,1.30776127,618.06,617.86,1.21013377]
[1743017983986,1.30776127,618.05,617.86,1.21013377]
[1743017984187,1.30776127,618.04,617.86,1.21013377]
[1743017984387,1.30776127,618.03,617.86,1.21013377]
[1743017984588,1.30790904,618.02,617.88,1.21013377]
[1743017984788,1.05590286,618.02,617.88,1.21013377]
[1743017985487,1.05590286,618.01,617.88,1.21013377]
[1743017986090,1.05590286,618.0,617.88,1.21013377]
[1743017986584,1.05590286,618.0,617.37,0.28159327]
[1743017986788,1.05590286,617.99,617.37,0.28159327]
[1743017987188,1.05590286,617.98,617.37,0.28159327]
[1743017987887,2.285,618.1,617.37,0.28159327]
[1743017988091,1.30776147,618.09,617.37,0.28159327]
[1743017988289,1.30776147,618.08,617.37,0.28159327]
[1743017988491,1.30776147,618.07,617.36,1.21013377]
[1743017988692,1.30776147,618.06,617.59,1.21013377]
[1743017988886,2.74506956,618.07,617.59,1.21013377]
[1743017989089,1.30760362,618.06,617.59,1.21013377]